fUSD/lending_fUSD_20240220
["ID","MTS","AMOUNT","RATE_DAILY","PERIOD"]
[314574576,1708429014567,-416.63921772,0.00024775,2]
[314574577,1708429026463,-1934.560162,0.00024774,2]
[314574578,1708429026484,-155.0,0.00024776,2]
[314574579,1708429046058,-155.0,0.00024776,2]
[314574580,1708429181806,-1007.9058444,0.00024774,2]
[314574581,1708429181832,-177.37935095,0.00024775,2]
[314574582,1708429181856,-213.41,0.00025078,2]
[314574583,1708429181880,-416.63921772,0.00026995,2]
[314574584,1708429181905,-16873.623238,0.00026996,2]
[314574585,1708429181927,-1445.0,0.00026996,2]
[314574586,1708429181951,-800.0,0.00027,3]
[314574587,1708429181975,-780.643079,0.00028853,2]
[314574588,1708429181998,-1346.86277013,0.00028998,2]
[314574589,1708429182022,-150.0,0.00028998,2]
[314574590,1708429182061,-1346.86277013,0.00028999,2]
[314574591,1708429182087,-850.0,0.00029,3]
[314574592,1708429182112,-419.88,0.00029,2]
[314574593,1708429182137,-499.99,0.00029,2]
[314574594,1708429182161,-1591.58,0.00029,2]
[314574595,1708429182185,-304.26,0.00029,2]
[314574596,1708429182210,-1775.96372967,0.00029,2]
[314574597,1708429210756,-998.26627033,0.00029,2]
[314574598,1708429210779,-914.48,0.00029,2]
[314574599,1708429210801,-760.43,0.00029,2]
[314574600,1708429210830,-385.81,0.00029,2]
[314574601,1708429210854,-542.13,0.00029868,2]
[314574602,1708429210877,-150.99,0.00029868,2]
[314574603,1708429210903,-157.95179592,0.00030582,2]
[314574604,1708429210927,-499.99,0.00030582,2]
[314574605,1708429210951,-266.26135688,0.00030841,4]
[314574606,1708429210974,-266.26135688,0.00030841,4]
[314574607,1708429211000,-1232.82365276,0.00030842,4]
[314574608,1708429211024,-3000.0,0.00030843,2]
[314574609,1708429211048,-3987.0205,0.00030899,2]
[314574610,1708429211074,-900.0,0.00031,3]
[314574611,1708429211102,-923.2,0.00031169,2]
[314574612,1708429211125,-7788.72,0.0003121,2]
[314574613,1708429211151,-157.95179592,0.00031214,2]
[314574614,1708429211174,-200.0,0.00031215,2]
[314574615,1708429211197,-180.77,0.00031217,2]
[314574616,1708429211220,-495.04,0.00031228,2]
[314574617,1708429211243,-500.0,0.00031232,2]
[314574618,1708429211267,-200.0,0.00031245,2]
[314574619,1708429211290,-1411.74,0.0003125,2]
[314574620,1708429211314,-285.99,0.00031302,2]
[314574621,1708429211336,-500.0,0.00031302,2]
[314574622,1708429211358,-2000.0,0.00031302,2]
[314574623,1708429211381,-872.0,0.00031347,2]
[314574624,1708429211403,-683.64,0.00031347,2]
[314574625,1708429211427,-203.0,0.00031387,2]
[314574626,1708429211449,-384.0,0.00031398,2]
[314574627,1708429211473,-250.0,0.00031424,2]
[314574628,1708429211496,-250.0,0.00031457,2]
[314574629,1708429211518,-1111.04,0.00031459,2]
[314574630,1708429211542,-285.99,0.00031467,2]
[314574631,1708429211567,-176.26,0.00031537,2]
[314574632,1708429211592,-285.99,0.00031632,2]
[314574633,1708429211615,-1354.1921134,0.00031667,4]
[314574634,1708429211637,-532.97880592,0.00031667,4]
[314574635,1708429211661,-14905.08235199,0.00031668,2]
[314574636,1708429244011,-6698.40764801,0.00031668,2]
[314574637,1708429244033,-161.87,0.0003168,2]
[314574638,1708429244056,-285.99,0.00031796,2]
[314574639,1708429244079,-157.95179592,0.00031846,2]
[314574640,1708429244102,-210.0,0.00031898,2]
[314574641,1708429244125,-285.99,0.00031961,2]
[314574642,1708429244148,-176.26,0.00032085,2]
[314574643,1708429244171,-285.99,0.00032126,2]
[314574644,1708429244193,-542.13,0.00032132,2]
[314574645,1708429244216,-285.99,0.00032291,2]
[314574646,1708429244238,-285.99,0.00032455,2]
[314574647,1708429244260,-157.95179592,0.00032478,2]
[314574648,1708429244281,-150.0,0.00032544,2]
[314574649,1708429244303,-285.99,0.0003262,2]
[314574650,1708429244325,-176.26,0.00032632,2]
[314574651,1708429244348,-285.99,0.00032785,2]
[314574652,1708429244370,-285.99,0.00032949,2]
[314574653,1708429244392,-950.0,0.00033,3]
[314574654,1708429244413,-384.0,0.00033042,2]
[314574655,1708429244434,-250.0,0.00033068,2]
[314574656,1708429244455,-157.95179592,0.00033111,2]
[314574657,1708429244477,-285.99,0.00033114,2]
[314574658,1708429244498,-176.26,0.0003318,2]
[314574659,1708429244521,-285.99,0.00033279,2]
[314574660,1708429244542,-161.87,0.00033327,2]
[314574661,1708429244562,-1181.44622531,0.00033384,4]
[314574662,1708429244584,-2893.46419439,0.00033386,4]
[314574663,1708429244607,-285.99,0.00033444,2]
[314574664,1708429244628,-285.99,0.00033608,2]
[314574665,1708429244649,-5176.64870099,0.00033725,2]
[314574666,1708429244671,-9216.76,0.00033735,2]
[314574667,1708429244694,-157.95179592,0.00033743,2]
[314574668,1708429244717,-203.0,0.00033772,6]
[314574669,1708429244739,-285.99,0.00033773,2]
[314574670,1708429244761,-1354.1921134,0.00033848,4]
[314574671,1708429244783,-418.429,0.00033849,2]
[314574672,1708429244804,-45169.32493422,0.00033849,2]
[314574692,1708429373811,-259.23788977,0.00030668,2]
[314574693,1708429373832,-151.27923715,0.0003337,2]
[314574694,1708429373852,-1354.1921134,0.00033848,4]
[314574695,1708429373877,-923.82986578,0.00033849,2]
[314574696,1708429373896,-1211.1924,0.00033849,2]
[314574697,1708429373917,-285.99,0.00033938,2]
[314574698,1708429373937,-230.46466223,0.00033948,4]
[314574699,1708429373958,-285.99,0.00034103,2]
[314574700,1708429373978,-153.75,0.00034228,2]
[314574701,1708429373997,-285.99,0.00034267,2]
[314574702,1708429374018,-515.57,0.0003436,10]
[314574703,1708429374037,-429.64,0.0003436,10]
[314574704,1708429374058,-150.0,0.00034368,3]
[314574705,1708429374078,-1048.51176729,0.00034368,2]
[314574706,1708429374098,-309.66895379,0.00034368,4]
[314574707,1708429374117,-698.04,0.00034368,4]
[314574708,1708429374137,-1000.0,0.00034369,2]
[314574709,1708429374157,-654.08,0.00034369,2]
[314574710,1708429374176,-1412.6,0.00034369,2]
[314574711,1708429374196,-1211.55281136,0.00034369,4]
[314574712,1708429374216,-87428.42029923,0.0003437,2]
[314574725,1708429787930,191.91293503,0.0002,2]
[314574732,1708429831915,-1007.9058444,0.00028893,2]
[314574733,1708429831924,-519.5412,0.00028894,2]
[314574734,1708429831933,-300.0,0.000289,2]
[314574735,1708429831943,-1611.58567747,0.000289,2]
[314574736,1708429831952,-487.91,0.00032392,2]
[314574737,1708429831961,-150.0,0.00033421,2]
[314574738,1708429831970,-250.0,0.00033489,111]
[314574739,1708429831979,-250.0,0.00033505,2]
[314574740,1708429831989,-974.05,0.0003358,2]
[314574741,1708429831998,-250.0,0.00033585,2]
[314574742,1708429832010,-200.0,0.00033602,2]
[314574743,1708429832023,-302.4,0.0003362,2]
[314574744,1708429832032,-299.99,0.0003362,30]
[314574745,1708429832041,-256.0,0.00033829,2]
[314574746,1708429832051,-2000.0,0.00033908,2]
[314574747,1708429832060,-500.0,0.00033929,2]
[314574748,1708429832070,-499.99,0.00033929,2]
[314574757,1708429832239,-247.52,0.00034012,2]
[314574759,1708429832251,-200.0,0.00034135,2]
[314574761,1708429832260,-157.95179592,0.00034169,2]
[314574763,1708429832270,-248.63,0.0003426,10]
[314574765,1708429832280,-232.33,0.0003426,10]
[314574767,1708429832290,-277.87,0.0003426,10]
[314574769,1708429832299,-150.0,0.00034268,3]
[314574771,1708429832308,-150.0,0.00034268,3]
[314574773,1708429832318,-719.29797262,0.0003427,2]
[314574774,1708429832327,-27189.17982302,0.0003427,2]
[314574777,1708429832338,-600.0,0.0003427,2]
[314574779,1708429832351,-2982.54603468,0.0003427,2]
[314574781,1708429832363,-431.18512968,0.0003427,2]
[314574783,1708429832374,-1246.77281262,0.0003427,2]
[314574785,1708429832383,-93092.6379,0.0003427,2]
[314574787,1708429832392,-3683.1088,0.0003427,2]
[314574789,1708429832401,-305.99480507,0.00034369,4]
[314574791,1708429832410,-150.0,0.00034369,2]
[314574793,1708429832420,-12571.57970077,0.0003437,2]
[314574795,1708429832429,-180.47,0.0003442,2]
[314574797,1708429832438,-285.99,0.00034432,2]
[314574799,1708429832447,-1000.0,0.0003447,2]
[314574801,1708429832456,-332.639345,0.0003452,2]
[314574803,1708429832465,-1384.54766,0.0003452,2]
[314574805,1708429832474,-711.61,0.00034521,2]
[314574807,1708429832484,-429.75176689,0.00034568,4]
[314574809,1708429832493,-1478.19995025,0.00034568,4]
[314574811,1708429832502,-1068.4209961,0.00034568,4]
[314574813,1708429832511,-487.91,0.00034656,2]
[314574815,1708429832520,-163.61,0.00034712,2]
[314574817,1708429832529,-498.959018,0.00034794,2]
[314574819,1708429832538,-2076.82149,0.00034794,2]
[314574821,1708429832547,-665.278691,0.00034931,2]
[314574823,1708429832556,-2769.09532,0.00034931,2]
[314574825,1708429832566,-157.95179592,0.00034988,2]
[314574827,1708429832575,-172.71046238,0.00035,5]
[314574829,1708429832584,-1000.0,0.00035,3]
[314574831,1708429832594,-15850.56192056,0.00035,7]
[314574833,1708429832603,-210.09619587,0.00035,7]
[314574835,1708429832612,-31501.18691036,0.00035068,2]
[314574837,1708429832621,-831.598364,0.00035068,2]
[314574839,1708429832630,-3461.36915,0.00035068,2]
[314574841,1708429832639,-204.0,0.00035156,2]
[314574843,1708429832648,-206.0,0.00035156,2]
[314574845,1708429832657,-2453.5621,0.00035242,2]
[314574847,1708429832666,-872.0,0.00035266,2]
[314574849,1708429832676,-46290.087867,0.00035342,2]
[314574851,1708429832686,-1164.237709,0.00035342,2]
[314574853,1708429832695,-4845.91681,0.00035342,2]
[314574855,1708429832704,-256.0,0.00035473,2]
[314574857,1708429832713,-19270.91734354,0.00035614,4]
[314574859,1708429832722,-401.35561289,0.00035615,4]
[314574861,1708429832731,-492.42921203,0.00035616,2]
[314574863,1708429832740,-311.93399767,0.00035616,2]
[314574865,1708429832749,-500.0,0.00035616,2]
[314574867,1708429832758,-500.0,0.00035616,2]
[314574869,1708429832767,-500.0,0.00035616,2]
[314574871,1708429832776,-500.0,0.00035616,2]
[314574873,1708429832786,-537.40940792,0.00035616,2]
[314574875,1708429832795,-500.0,0.00035616,2]
[314574877,1708429832805,-162.0,0.00035616,2]
[314574879,1708429832814,-500.0,0.00035616,2]
[314574881,1708429832823,-500.0,0.00035616,2]
[314574883,1708429832832,-1000.0,0.00035616,7]
[314574885,1708429832843,-500.0,0.00035616,2]
[314574887,1708429832852,-500.0,0.00035616,2]
[314574889,1708429832861,-500.0,0.00035616,2]
[314574891,1708429832870,-500.0,0.00035616,2]
[314574893,1708429832879,-500.54,0.00035616,2]
[314574895,1708429832889,-500.0,0.00035616,2]
[314574896,1708429832898,-500.0,0.00035616,2]
[314574898,1708429832907,-500.0,0.00035616,2]
[314574900,1708429832916,-500.0,0.00035616,2]
[314574902,1708429832925,-500.0,0.00035616,2]
[314574904,1708429832934,-500.0,0.00035616,2]
[314574906,1708429832944,-500.0,0.00035616,2]
[314574908,1708429832953,-500.0,0.00035616,2]
[314574910,1708429832962,-500.0,0.00035616,2]
[314574912,1708429832971,-500.0,0.00035616,2]
[314574914,1708429832981,-321.17690249,0.00035616,2]
[314574916,1708429832990,-530.39,0.00035616,2]
[314574918,1708429832999,-228.75909848,0.00035616,2]
[314574920,1708429833011,-500.0,0.00035616,2]
[314574922,1708429833020,-416.53471171,0.00035616,2]
[314574924,1708429833029,-500.0,0.00035616,2]
[314574926,1708429833038,-500.0,0.00035616,2]
[314574928,1708429833048,-349.26895881,0.00035616,2]
[314574930,1708429833056,-500.0,0.00035616,2]
[314574932,1708429833066,-514.05413777,0.00035616,2]
[314574934,1708429833074,-500.0,0.00035616,2]
[314574936,1708429833084,-500.0,0.00035616,2]
[314574938,1708429833096,-500.0,0.00035616,2]
[314574940,1708429833106,-313.22,0.00035616,2]
[314574942,1708429833115,-374.12,0.00035616,2]
[314574943,1708429833124,-500.0,0.00035616,2]
[314574945,1708429833134,-500.0,0.00035616,2]
[314574947,1708429833143,-500.0,0.00035616,2]
[314574949,1708429833153,-500.0,0.00035616,2]
[314574951,1708429833162,-744.15,0.00035616,2]
[314574954,1708429833172,-500.0,0.00035616,2]
[314574955,1708429833181,-500.0,0.00035616,2]
[314574958,1708429833191,-500.0,0.00035616,2]
[314574960,1708429833200,-283.94400936,0.00035616,2]
[314574962,1708429833209,-500.0,0.00035616,2]
[314574964,1708429833218,-892.39,0.00035616,2]
[314574966,1708429833228,-500.0,0.00035616,2]
[314574968,1708429833237,-500.0,0.00035616,2]
[314574970,1708429833247,-197.09711991,0.00035616,2]
[314574972,1708429833256,-500.0,0.00035616,2]
[314574974,1708429833266,-500.0,0.00035616,2]
[314574976,1708429833275,-525.33153705,0.00035616,2]
[314574978,1708429833285,-500.0,0.00035616,2]
[314574980,1708429833294,-358.68918523,0.00035616,2]
[314574982,1708429833303,-500.0,0.00035616,2]
[314574983,1708429833313,-500.0,0.00035616,2]
[314574985,1708429833322,-500.0,0.00035616,2]
[314574988,1708429833331,-500.0,0.00035616,2]
[314574990,1708429833341,-510.26032062,0.00035616,2]
[314574992,1708429833351,-500.0,0.00035616,2]
[314574994,1708429833360,-500.0,0.00035616,2]
[314574996,1708429833370,-500.0,0.00035616,2]
[314574997,1708429833379,-500.0,0.00035616,2]
[314575000,1708429833388,-500.0,0.00035616,2]
[314575002,1708429833397,-500.0,0.00035616,2]
[314575004,1708429833407,-500.0,0.00035616,2]
[314575006,1708429833416,-500.0,0.00035616,2]
[314575008,1708429833426,-500.0,0.00035616,2]
[314575009,1708429833435,-500.0,0.00035616,2]
[314575012,1708429833445,-589.91,0.00035616,2]
[314575013,1708429833454,-500.0,0.00035616,2]
[314575015,1708429833463,-500.0,0.00035616,2]
[314575017,1708429833472,-227.48037839,0.00035616,2]
[314575019,1708429833482,-500.0,0.00035616,2]
[314575020,1708429833491,-749.37,0.00035616,2]
[314575021,1708429833500,-500.0,0.00035616,2]
[314575022,1708429833509,-500.0,0.00035616,2]
[314575023,1708429833519,-500.0,0.00035616,2]
[314575024,1708429833529,-541.65,0.00035616,2]
[314575025,1708429833538,-208.05,0.00035616,2]
[314575026,1708429833547,-533.27465333,0.00035616,2]
[314575027,1708429833556,-500.0,0.00035616,2]
[314575028,1708429833565,-500.0,0.00035616,2]
[314575029,1708429833574,-567.33,0.00035616,2]
[314575030,1708429833583,-500.0,0.00035616,2]
[314575031,1708429833593,-500.0,0.00035616,2]
[314575032,1708429833603,-500.0,0.00035616,2]
[314575033,1708429833612,-500.0,0.00035616,2]
[314575034,1708429833621,-500.0,0.00035616,2]
[314575035,1708429833630,-500.0,0.00035616,2]
[314575036,1708429833639,-500.0,0.00035616,2]
[314575037,1708429833649,-500.0,0.00035616,2]
[314575038,1708429833658,-500.0,0.00035616,2]
[314575040,1708429833668,-500.0,0.00035616,2]
[314575042,1708429833677,-1065.98,0.00035616,2]
[314575044,1708429833686,-500.0,0.00035616,2]
[314575046,1708429833696,-500.0,0.00035616,2]
[314575048,1708429833705,-500.0,0.00035616,2]
[314575050,1708429833715,-500.0,0.00035616,2]
[314575052,1708429833724,-500.0,0.00035616,2]
[314575054,1708429833734,-500.0,0.00035616,2]
[314575056,1708429833743,-500.0,0.00035616,2]
[314575058,1708429833753,-500.0,0.00035616,2]
[314575060,1708429833762,-500.0,0.00035616,2]
[314575062,1708429833771,-851.53,0.00035616,2]
[314575064,1708429833780,-500.0,0.00035616,2]
[314575066,1708429833789,-500.0,0.00035616,2]
[314575068,1708429833798,-500.0,0.00035616,2]
[314575070,1708429833807,-500.0,0.00035616,2]
[314575072,1708429833816,-500.0,0.00035616,2]
[314575074,1708429833825,-500.0,0.00035616,2]
[314575076,1708429833834,-500.0,0.00035616,2]
[314575077,1708429833844,-500.0,0.00035616,2]
[314575080,1708429833854,-341.11,0.00035616,2]
[314575082,1708429833863,-500.0,0.00035616,2]
[314575084,1708429833872,-500.0,0.00035616,2]
[314575085,1708429833881,-2278.8,0.00035616,2]
[314575088,1708429833891,-500.0,0.00035616,2]
[314575090,1708429833900,-500.0,0.00035616,2]
[314575092,1708429833909,-500.0,0.00035616,2]
[314575094,1708429833918,-500.0,0.00035616,2]
[314575096,1708429833929,-500.0,0.00035616,2]
[314575098,1708429833938,-500.0,0.00035616,2]
[314575100,1708429833948,-500.0,0.00035616,2]
[314575102,1708429833956,-615.43,0.00035616,2]
[314575104,1708429833965,-500.0,0.00035616,2]
[314575106,1708429833974,-535.94198773,0.00035616,2]
[314575108,1708429833983,-500.0,0.00035616,2]
[314575110,1708429833992,-500.0,0.00035616,2]
[314575112,1708429834001,-500.0,0.00035616,2]
[314575114,1708429834013,-500.0,0.00035616,2]
[314575116,1708429834021,-171.96471663,0.00035616,2]
[314575118,1708429834036,-328.03528337,0.00035616,2]
[314575120,1708429834045,-258.92564348,0.00035616,2]
[314575123,1708429834058,-241.07435652,0.00035616,2]
[314575125,1708429834067,-500.0,0.00035616,2]
[314575127,1708429834076,-500.0,0.00035616,2]
[314575129,1708429834087,-500.0,0.00035616,2]
[314575131,1708429834098,-500.0,0.00035616,2]
[314575132,1708429834107,-500.0,0.00035616,2]
[314575135,1708429834117,-500.0,0.00035616,2]
[314575136,1708429834126,-962.24,0.00035616,2]
[314575138,1708429834135,-500.0,0.00035616,2]
[314575141,1708429834144,-500.0,0.00035616,2]
[314575143,1708429834153,-500.0,0.00035616,2]
[314575145,1708429834164,-500.0,0.00035616,2]
[314575147,1708429834172,-500.0,0.00035616,2]
[314575149,1708429834183,-500.0,0.00035616,2]
[314575151,1708429834192,-500.0,0.00035616,2]
[314575153,1708429834201,-500.0,0.00035616,2]
[314575155,1708429834210,-1500.0,0.00035616,10]
[314575157,1708429834220,-711.61,0.00035798,2]
[314575159,1708429834229,-157.95179592,0.00035806,2]
[314575161,1708429834238,-500.0,0.00035889,2]
[314575163,1708429834247,-500.0,0.00035889,2]
[314575165,1708429834256,-500.0,0.00035889,2]
[314575167,1708429834266,-500.0,0.00035889,2]
[314575169,1708429834275,-500.0,0.00035889,2]
[314575171,1708429834284,-500.0,0.00035889,2]
[314575173,1708429834293,-500.0,0.00035889,2]
[314575175,1708429834303,-500.0,0.00035889,2]
[314575177,1708429834312,-500.0,0.00035889,2]
[314575179,1708429834321,-500.0,0.00035889,2]
[314575181,1708429834330,-500.0,0.00035889,2]
[314575183,1708429834339,-500.0,0.00035889,2]
[314575185,1708429834349,-500.0,0.00035889,2]
[314575187,1708429834358,-500.0,0.00035889,2]
[314575189,1708429834367,-500.0,0.00035889,2]
[314575191,1708429834376,-413.30918513,0.00035889,2]
[314575192,1708429834385,-500.0,0.00035889,2]
[314575193,1708429834394,-500.0,0.00035889,2]
[314575194,1708429834403,-500.0,0.00035889,2]
[314575195,1708429834412,-500.0,0.00035889,2]
[314575196,1708429834421,-500.0,0.00035889,2]
[314575197,1708429834430,-500.0,0.00035889,2]
[314575198,1708429834440,-500.0,0.00035889,2]
[314575199,1708429834449,-500.0,0.00035889,2]
[314575200,1708429834458,-500.0,0.00035889,2]
[314575201,1708429834468,-500.0,0.00035889,2]
[314575202,1708429834477,-500.0,0.00035889,2]
[314575203,1708429834486,-500.0,0.00035889,2]
[314575204,1708429834495,-500.0,0.00035889,2]
[314575205,1708429834504,-500.0,0.00035889,2]
[314575206,1708429834513,-500.0,0.00035889,2]
[314575207,1708429834523,-196.42188972,0.00035889,2]
[314575208,1708429834532,-503.87404621,0.00035889,2]
[314575209,1708429834541,-523.53320166,0.00035889,2]
[314575210,1708429834550,-603.78,0.00035889,2]
[314575211,1708429834559,-537.39755263,0.00035889,2]
[314575213,1708429834569,-500.0,0.00035889,2]
[314575214,1708429834578,-535.33670186,0.00035889,2]
[314575215,1708429834587,-518.10488505,0.00035889,2]
[314575216,1708429834598,-500.0,0.00035889,2]
[314575217,1708429834608,-535.29061177,0.00035889,2]
[314575218,1708429834617,-519.55945962,0.00035889,2]
[314575219,1708429834626,-530.87648806,0.00035889,2]
[314575220,1708429834636,-500.0,0.00035889,2]
[314575221,1708429834645,-300.0,0.00035889,2]
[314575222,1708429834655,-300.0,0.00035889,2]
[314575223,1708429834664,-300.0,0.00035889,2]
[314575224,1708429834673,-231.59285315,0.00035889,2]
[314575225,1708429834682,-500.0,0.00035889,2]
[314575226,1708429834691,-533.13573245,0.00035889,2]
[314575227,1708429834701,-529.15164544,0.00035889,2]
[314575228,1708429834710,-500.0,0.00035889,2]
[314575229,1708429834719,-526.14166542,0.00035889,2]
[314575230,1708429834728,-544.99820479,0.00035889,2]
[314575231,1708429834737,-500.0,0.00035889,2]
[314575232,1708429834746,-500.89323947,0.00035889,2]
[314575233,1708429834755,-514.45206235,0.00035889,2]
[314575234,1708429834765,-500.0,0.00035889,2]
[314575235,1708429834774,-530.22005473,0.00035889,2]
[314575236,1708429834783,-500.0,0.00035889,2]
[314575237,1708429834792,-518.9105739,0.00035889,2]
[314575238,1708429834801,-500.0,0.00035889,2]
[314575239,1708429834811,-553.51334025,0.00035889,2]
[314575240,1708429834821,-535.21179807,0.00035889,2]
[314575241,1708429834830,-234.19766891,0.00035889,2]
[314575242,1708429834839,-512.10546167,0.00035889,2]
[314575243,1708429835114,-500.0,0.00035889,2]
[314575244,1708429835124,-516.29869418,0.00035889,2]
[314575245,1708429835134,-500.0,0.00035889,2]
[314575246,1708429835144,-518.5058178,0.00035889,2]
[314575247,1708429835153,-2679.33389496,0.00035889,2]
[314575248,1708429835172,-462.89610504,0.00035889,2]
[314575249,1708429835182,-30.74563541,0.00035889,2]
[314575250,1708429835194,-469.25436459,0.00035889,2]
[314575251,1708429835204,-500.0,0.00035889,2]
[314575252,1708429835214,-513.52932389,0.00035889,2]
[314575253,1708429835223,-89.71503152,0.00035889,10]
[314575254,1708429835236,-415.97545466,0.00035889,10]
[314575255,1708429835245,-523.23011409,0.00035889,2]
[314575256,1708429835254,-460.79443125,0.00035889,2]
[314575257,1708429835271,-39.20556875,0.00035889,2]
[314575258,1708429835281,-500.0,0.00035889,2]
[314575259,1708429835292,-500.0,0.00035889,2]
[314575260,1708429835302,-500.0,0.00035889,2]
[314575261,1708429835312,-500.0,0.00035889,2]
[314575262,1708429835322,-531.77821765,0.00035889,2]
[314575263,1708429835332,-519.83944603,0.00035889,2]
[314575264,1708429835342,-500.0,0.00035889,2]
[314575265,1708429835353,-521.12434999,0.00035889,2]
[314575266,1708429835363,-500.0,0.00035889,2]
[314575267,1708429835373,-500.0,0.00035889,2]
[314575268,1708429835382,-500.0,0.00035889,2]
[314575269,1708429835392,-591.12436048,0.00035889,2]
[314575270,1708429835402,-648.5,0.00035889,2]
[314575271,1708429835411,-500.0,0.00035889,2]
[314575272,1708429835420,-500.0,0.00035889,2]
[314575273,1708429835429,-500.0,0.00035889,2]
[314575274,1708429835439,-500.0,0.00035889,2]
[314575275,1708429835448,-500.0,0.00035889,2]
[314575276,1708429835458,-531.50040265,0.00035889,2]
[314575277,1708429835467,-500.0,0.0003589,2]
[314575278,1708429835477,-245.9466624,0.0003589,2]
[314575279,1708429835487,-500.0,0.0003589,2]
[314575280,1708429835496,-1000.0,0.0003589,7]
[314575281,1708429835506,-500.0,0.0003589,2]
[314575282,1708429835515,-165.11506643,0.0003589,2]
[314575283,1708429835525,-500.0,0.0003589,2]
[314575284,1708429835534,-500.54,0.0003589,2]
[314575285,1708429835543,-500.0,0.0003589,2]
[314575286,1708429835553,-500.0,0.0003589,2]
[314575287,1708429835563,-500.0,0.0003589,2]
[314575288,1708429835574,-500.0,0.0003589,2]
[314575289,1708429835583,-500.0,0.0003589,2]
[314575290,1708429835593,-500.0,0.0003589,2]
[314575291,1708429835605,-500.0,0.0003589,2]
[314575292,1708429835614,-500.0,0.0003589,2]
[314575293,1708429835623,-744.15,0.0003589,2]
[314575294,1708429835633,-570.01,0.0003589,2]
[314575295,1708429835642,-500.0,0.0003589,2]
[314575296,1708429835651,-500.0,0.0003589,2]
[314575297,1708429835661,-892.39,0.0003589,2]
[314575298,1708429835671,-500.0,0.0003589,2]
[314575299,1708429835680,-500.0,0.0003589,2]
[314575300,1708429835690,-500.0,0.0003589,2]
[314575301,1708429835701,-500.0,0.0003589,2]
[314575302,1708429835711,-500.0,0.0003589,2]
[314575303,1708429835721,-500.0,0.0003589,2]
[314575304,1708429835730,-239.14314218,0.0003589,2]
[314575305,1708429835740,-500.0,0.0003589,2]
[314575306,1708429835749,-500.0,0.0003589,2]
[314575307,1708429835759,-500.0,0.0003589,2]
[314575308,1708429835771,-749.37,0.0003589,2]
[314575309,1708429835781,-500.0,0.0003589,2]
[314575310,1708429835791,-541.65,0.0003589,2]
[314575311,1708429835800,-567.33,0.0003589,2]
[314575312,1708429835810,-500.0,0.0003589,2]
[314575313,1708429835819,-500.0,0.0003589,2]
[314575314,1708429835828,-500.0,0.0003589,2]
[314575315,1708429835838,-500.0,0.0003589,2]
[314575316,1708429835848,-500.0,0.0003589,2]
[314575317,1708429835858,-500.0,0.0003589,2]
[314575318,1708429835867,-1065.98,0.0003589,2]
[314575319,1708429835877,-289.41320101,0.0003589,2]
[314575320,1708429835887,-500.0,0.0003589,2]
[314575321,1708429835896,-224.02361795,0.0003589,2]
[314575322,1708429835906,-500.0,0.0003589,2]
[314575323,1708429835915,-500.0,0.0003589,2]
[314575324,1708429835925,-851.53,0.0003589,2]
[314575325,1708429835935,-500.0,0.0003589,2]
[314575326,1708429835945,-500.0,0.0003589,2]
[314575327,1708429835954,-500.0,0.0003589,2]
[314575328,1708429835964,-500.0,0.0003589,2]